Cogmind - Beta 14 @@@ ROGUE MODE // 2024.10.30 @ 01:14:24 Player: Mitsuru Result: Escaped! Performance ------------- Evolutions (9) 4500 Regions Visited (20) 4000 Robots Destroyed (93) 465 Value Destroyed (3712) 3712 Prototype IDs (18) 360 Alien Tech Used (0) 0 Bonus (6016) 6016 TOTAL SCORE: 19053 Bonus ------- High Alert Combat Kills 213 Follower Combat Kills 1803 Network Hubs Disabled 400 Registered with UFD 300 A7 Reached Mainframe 300 Win 3000 Cogmind --------- Core Integrity 1592/1600 Matter 300/300 Energy 374/410 System Corruption 0% Temperature Cool (5) Movement Flying (26) Location To Epsilon Eridani Parts ------- > --- POWER (2) -------- Light Nuclear Core Quantum Reactor > --- PROPULSION (6) --- Nuclear Pulse Thruster Nuclear Pulse Thruster Q-thruster Q-thruster Cooled Q-thruster > --- UTILITY (13) ----- Advanced Weight Redist. System Advanced Visual Processing Unit Advanced Signal Interpreter Improved Cloaking Device Layered Light Armor Plating Hacking Suite System Shield Improved System Shield > --- WEAPON (4) ------- Companion Sword > --- INVENTORY (5) ---- Field Propulsion Array Hypervelocity Gauss Cannon Hardcell Cannon Long-range Missile Launcher Peak State ------------ > --- POWER ------------ Light Antimatter Reactor > --- PROPULSION ------- Nuclear Pulse Thruster Nuclear Pulse Thruster Nuclear Pulse Thruster Q-thruster Q-thruster Cooled Q-thruster > --- UTILITY ---------- Advanced Visual Processing Unit Improved Sensor Array Advanced Signal Interpreter Improved Cloaking Device Improved Light Armor Plating Layered Light Armor Plating Centrium Medium Armor Plating Hacking Suite System Shield System Shield Improved System Shield > --- WEAPON ----------- Companion Sword > --- INVENTORY -------- Light Nuclear Core Magnetic Acceleration Cannon Hypervelocity Gauss Cannon Hardcell Cannon Long-range Missile Launcher [Rating: 104] Favorites ----------- Power Improved Ion Engine Engine Improved Ion Engine Power Core Light Nuclear Core Reactor Light Antimatter Reactor Propulsion Armored Treads Treads Armored Treads Leg Carbon-fiber Leg Wheel Compact Wheel Hover Unit Gravmag System Flight Unit Nuclear Pulse Thruster Utility System Shield Device Experimental Sensor Array Storage Medium Storage Unit Processor Advanced Targeting Computer Hackware System Shield Protection Centrium Medium Armor Plating Weapon Assault Cannon Energy Gun Medium Laser Energy Cannon Heavy Particle Cannon Ballistic Gun Minigun Ballistic Cannon Assault Cannon Launcher Mini Grenade Launcher Special Weapon Mining Laser Impact Weapon Heavy Hammer Slashing Weapon Companion Sword Build | -11 -10 -10 -10 -9 -8 -8 -8 -8 -6 -6 -6 -6 -6 -5 -4 -4 -4 -3 -2 -1 ------- Run | Yrd Mat Min Exi Min Mat Sto Rec Scr Fac Ext Cet Arc Hub Fac Fac Was Fac Res Res Acc Slots Evolved 18 | . . . . . 4 . . . 4 . . . . 2 2 . . 2 2 2 Power 1 | . . . . . 1 . . . . . . . . . . . . . . . Propulsion 4 | . . . . . . . . . 1 . . . . 1 1 . . 1 . . Utility 11 | . . . . . 2 . . . 2 . . . . 1 1 . . 1 2 2 Weapon 2 | . . . . . 1 . . . 1 . . . . . . . . . . . Parts Attached 118 | 6 . 1 1 5 17 14 3 11 12 14 5 1 6 4 . . 1 9 6 2 Power 23 | 1 . . . 2 2 2 . 4 2 4 . 1 1 . . . 1 . 2 1 Engine 16 | 1 . . . 2 . 2 . 4 2 4 . . 1 . . . . . . . Core 5 | . . . . . 2 . . . . . . 1 . . . . 1 . 1 . Reactor 2 | . . . . . . . . . . . . . . . . . . . 1 1 Propulsion 34 | 2 . . . 1 4 5 3 . 4 6 1 . 3 1 . . . 2 2 . Treads 13 | . . . . . 3 4 3 . 3 . . . . . . . . . . . Leg 4 | . . . . . . . . . . 3 1 . . . . . . . . . Wheel 5 | 2 . . . 1 1 . . . 1 . . . . . . . . . . . Hover 3 | . . . . . . . . . . 3 . . . . . . . . . . Flight 9 | . . . . . . 1 . . . . . . 3 1 . . . 2 2 . Utility 25 | 1 . 1 1 . 3 2 . 2 3 2 1 . . 2 . . . 4 2 1 Device 8 | . . . . . 2 1 . 1 . . . . . 1 . . . 2 . 1 Storage 2 | 1 . . 1 . . . . . . . . . . . . . . . . . Processor 4 | . . 1 . . . . . . 1 . . . . 1 . . . . 1 . Hackware 4 | . . . . . . 1 . 1 1 1 . . . . . . . . . . Protection 7 | . . . . . 1 . . . 1 1 1 . . . . . . 2 1 . Artifact . | . . . . . . . . . . . . . . . . . . . . . Weapon 36 | 2 . . . 2 8 5 . 5 3 2 3 . 2 1 . . . 3 . . Energy Gun 4 | 2 . . . . . 2 . . . . . . . . . . . . . . Energy Cannon 5 | . . . . 1 4 . . . . . . . . . . . . . . . Ballistic Gun 4 | . . . . . . . . 1 2 . . . 1 . . . . . . . Ballistic Cannon 11 | . . . . . 3 2 . 2 1 1 2 . . . . . . . . . Launcher 2 | . . . . . . 1 . . . . 1 . . . . . . . . . Special Weapon 1 | . . . . . 1 . . . . . . . . . . . . . . . Impact Weapon 1 | . . . . 1 . . . . . . . . . . . . . . . . Slashing Weapon 8 | . . . . . . . . 2 . 1 . . 1 1 . . . 3 . . Piercing Weapon . | . . . . . . . . . . . . . . . . . . . . . Special Melee Weapon . | . . . . . . . . . . . . . . . . . . . . . Unidentified Prototypes 6 | . . . . . . 3 . 1 . . 1 . . . . . . . 1 . Parts Lost 46 | . . . . 5 4 5 . . 9 8 5 1 . . . . . 3 6 . Power 11 | . . . . 2 1 1 . . 2 3 1 . . . . . . . 1 . Propulsion 14 | . . . . 1 2 1 . . 3 2 2 . . . . . . 2 1 . Utility 10 | . . . . . . 2 . . 1 1 1 . . . . . . 1 4 . Weapon 11 | . . . . 2 1 1 . . 3 2 1 1 . . . . . . . . Highest Loss Streak 7 | . . . . 4 2 2 . . 7 3 5 1 . . . . . 3 5 . To Critical Strikes . | . . . . . . . . . . . . . . . . . . . . . Average Slot Usage (%) 86 | . 85 98 100 94 79 92 90 98 79 77 72 67 66 76 68 68 68 67 75 57 Engine 11 | . 14 14 14 10 4 7 18 18 12 9 . . 1 5 5 5 3 . . . Core 1 | . . . . . 6 6 . . . . . 2 4 . . . 1 4 1 4 Treads 10 | . . . . . 8 17 18 18 16 10 . . . . . . . . . . Leg 1 | . . . . . . . . . . 4 12 13 10 . . . . . . . Wheel 3 | . 28 28 28 27 5 . . . . . . . . . . . . . . . Flight 2 | . . . . . . . . . . . . . 3 23 21 21 21 18 23 20 Device 3 | . . . . . 11 6 . 2 6 3 . . . 5 5 5 5 7 7 5 Storage 7 | . 14 14 14 14 9 9 9 9 6 4 . . . . . . . . . . Processor 6 | . . 12 14 14 9 9 9 6 1 6 6 6 6 5 5 5 5 4 7 8 Hackware 13 | . . . . . . 6 9 16 14 21 26 26 26 23 21 21 21 19 16 12 Protection 1 | . . . . . 4 2 . . 2 1 5 6 6 5 5 5 5 8 9 4 Energy Gun 2 | . 28 28 28 13 . 7 . . . . . . . . . . . . . . Ballistic Gun 1 | . . . . . . . . 3 4 1 . . . . . . . . . . Ballistic Cannon 9 | . . . . . 8 11 18 18 6 3 11 5 . . . . . . . . Launcher 2 | . . . . . . 7 9 5 . . . . . . . . . . . . Slashing Weapon 2 | . . . . . . . . . 6 5 6 6 5 5 5 5 5 3 4 4 Peak Build Rating 104 | 6 6 10 10 11 26 30 26 42 56 59 48 50 54 66 66 66 69 75 104 90 Average Rating 36 | 4 6 8 10 10 20 27 26 31 48 47 46 44 46 65 66 66 65 69 91 79 On Entrance 38 | . 6 6 10 10 10 22 26 26 42 56 43 48 45 48 66 66 66 64 75 78 Naked Turns . | . . . . . . . . . . . . . . . . . . . . . Heaviest Build 44 | 12 12 12 17 24 44 36 33 42 42 42 28 28 25 21 21 21 21 21 32 34 Greatest Support 64 | 26 26 26 26 26 40 44 44 40 64 52 30 30 30 24 24 24 24 26 44 44 Greatest Overweight (x) 13 | . . . . 1 13 1 . 1 5 1 1 . 1 . . . . . . . Average Overweight (x) . | . . . . . . . . . . . . . . . . . . . . . Largest Inventory Capacity 10 | 8 8 8 10 10 10 10 10 10 10 10 5 5 5 5 5 5 5 5 5 5 Average Capacity 8 | 7 8 8 9 10 10 10 10 10 10 8 5 5 5 5 5 5 5 5 5 5 Most Carried 10 | 2 3 8 8 10 10 10 10 10 10 10 5 4 5 5 5 5 5 5 5 5 Average Carried 8 | 1 2 5 8 9 9 9 9 9 8 8 2 2 4 3 5 5 4 4 4 5 Final Capacity 10 | 8 8 8 10 10 10 10 10 10 10 5 5 5 5 5 5 5 5 5 5 5 Final Carried 10 | 2 3 8 8 9 10 9 10 10 9 5 2 4 5 5 5 5 5 4 5 5 Class Distribution -------------------- 26% | Hacker-Mutant 16% | Hacker-Gunner 15% | Gunner 13% | Mutant 8% | Hacker-Sprinter 8% | Hacker-Skirmisher 3% | Scavenger-Mutant 3% | Scavenger-Gunner Dominant Class ---------------- Mutant | -10/Materials Mutant | -10/Mines Mutant | -10/Exiles Mutant | -9/Mines Scavenger-Mutant | -8/Materials Gunner | -8/Storage Gunner | -8/Recycling Hacker-Gunner | -8/Scraptown Hacker-Mutant | -6/Factory Hacker-Mutant | -6/Extension Hacker-Mutant | -6/Cetus Hacker-Mutant | -6/Archives Hacker-Mutant | -6/Hub_04(d) Hacker-Sprinter | -5/Factory Hacker-Sprinter | -4/Factory Hacker-Sprinter | -4/Waste Hacker-Sprinter | -4/Factory Hacker-Sprinter | -3/Research Hacker-Ninja | -2/Research Hacker-Sprinter | -1/Access Resources | -11 -10 -10 -10 -9 -8 -8 -8 -8 -6 -6 -6 -6 -6 -5 -4 -4 -4 -3 -2 -1 ----------- Run | Yrd Mat Min Exi Min Mat Sto Rec Scr Fac Ext Cet Arc Hub Fac Fac Was Fac Res Res Acc Matter Collected 2365 | 260 . . . 70 307 399 . 276 151 528 125 . 10 104 . . 10 . 103 22 Remotely . | . . . . . . . . . . . . . . . . . . . . . Salvage Created 4142 | . . . . 361 864 765 . . 337 841 82 . 794 . . . . . 33 65 Parts 198 | . . . . 11 42 38 . . 16 54 1 . 30 . . . . . 4 2 Haulers Intercepted 4 | . . . . . . . . . . . . . 4 . . . . . . . Recyclers Shooed 2 | . . . . . . 1 . . . 1 . . . . . . . . . . Parts Field Recycled . | . . . . . . . . . . . . . . . . . . . . . Retrieved Matter . | . . . . . . . . . . . . . . . . . . . . . Parts Self-Destructed . | . . . . . . . . . . . . . . . . . . . . . Prevented . | . . . . . . . . . . . . . . . . . . . . . Kills | -11 -10 -10 -10 -9 -8 -8 -8 -8 -6 -6 -6 -6 -6 -5 -4 -4 -4 -3 -2 -1 ------- Run | Yrd Mat Min Exi Min Mat Sto Rec Scr Fac Ext Cet Arc Hub Fac Fac Was Fac Res Res Acc Combat Hostiles Destroyed 70 | . . . . 10 17 20 . . 6 12 2 . 2 . . . . . . 1 Melee 24 | . . . . 4 . . . . 5 12 . . 2 . . . . . . 1 Guns 8 | . . . . 1 . 7 . . . . . . . . . . . . . . Cannons 30 | . . . . 1 17 9 . . 1 . 2 . . . . . . . . . AOE 4 | . . . . . . 4 . . . . . . . . . . . . . . Classes Destroyed 12 | . . . . 4 4 . . . . 2 . . 2 . . . . . . . Worker 5 | . . . . . 1 . . . . . . . 4 . . . . . . . Builder 5 | . . . . . . . . . . 4 . . 1 . . . . . . . Hauler 4 | . . . . . . . . . . . . . 4 . . . . . . . Recycler 4 | . . . . 2 1 . . . . . . . 1 . . . . . . . Operator 1 | . . . . . . . . . . . . . 1 . . . . . . . Watcher 4 | . . . . . 1 . . . . 1 . . 1 . . . . . 1 . Swarmer 9 | . . . . 7 2 . . . . . . . . . . . . . . . Grunt 39 | . . . . 2 11 13 . . 3 9 . . 1 . . . . . . . Brawler 1 | . . . . 1 . . . . . . . . . . . . . . . . Sentry 14 | . . . . . 3 7 . . 1 2 . . 1 . . . . . . . Hunter 3 | . . . . . 1 . . . 2 . . . . . . . . . . . Programmer 2 | . . . . . . . . . . 1 . . . . . . . . . 1 Cetus Guard 2 | . . . . . . . . . . . 2 . . . . . . . . . Best Kill Streak 11 | . . . . 4 6 5 . . 3 3 2 . 11 . . . . . 1 1 Combat Bots Only 5 | . . . . 4 5 5 . . 3 3 2 . 2 . . . . . . 1 Max Kills in Single Turn 10 | . . . . 1 2 3 . . 1 1 1 . 10 . . . . . 1 1 Gunslinging . | . . . . . . . . . . . . . . . . . . . . . Exploded 3 | . . . . . . 3 . . . . . . . . . . . . . . Melee 1 | . . . . 1 . . . . 1 1 . . 1 . . . . . . 1 Uniques/NPCs Destroyed . | . . . . . . . . . . . . . . . . . . . . . Combat | -11 -10 -10 -10 -9 -8 -8 -8 -8 -6 -6 -6 -6 -6 -5 -4 -4 -4 -3 -2 -1 -------- Run | Yrd Mat Min Exi Min Mat Sto Rec Scr Fac Ext Cet Arc Hub Fac Fac Was Fac Res Res Acc Hostile Shots Fired 750 | . . 1 . 59 86 99 . . 142 128 35 24 33 . . . 8 46 89 . Missed 258 | . . 1 . 6 27 29 . . 34 43 14 9 19 . . . 2 25 49 . Damage Taken 7711 | . . . . 487 852 1209 . . 1536 1091 535 341 345 . . . 111 276 920 8 Core 1402 | . . . . 117 88 174 . . 209 193 122 92 49 . . . 29 45 276 8 Absorbed by Shields 473 | . . . . . . . . . . 414 59 . . . . . . . . . Core Remaining (%) 77 | 100 . . . 53 . . . 52 . . . . 21 100 . . 97 96 80 99 Volleys Fired 148 | . . . . 13 43 60 . . 9 14 8 . 1 . . . . . . . Largest 3 | . . . . 1 3 3 . . 3 1 2 . 1 . . . . . . . Hottest 218 | . . . . 68 218 149 . . 113 57 110 . 33 . . . . . . . Shots Fired 272 | . . . . 13 101 105 . . 27 14 11 . 1 . . . . . . . Gun 59 | . . . . 9 . 40 . . 9 . . . 1 . . . . . . . Cannon 204 | . . . . 4 101 59 . . 18 14 8 . . . . . . . . . Launcher 9 | . . . . . . 6 . . . . 3 . . . . . . . . . Special . | . . . . . . . . . . . . . . . . . . . . . Kinetic 137 | . . . . . 28 59 . . 27 14 8 . 1 . . . . . . . Thermal 126 | . . . . 13 73 40 . . . . . . . . . . . . . . Explosive 9 | . . . . . . 6 . . . . 3 . . . . . . . . . Electromagnetic . | . . . . . . . . . . . . . . . . . . . . . Robot Hit Streak 22 | . . . . 7 22 19 . . 7 1 5 . . . . . . . . . Robot Miss Streak 3 | . . . . 2 2 3 . . 2 . 2 . . . . . . . . . Penetration Max . | . . . . . . . . . . . . . . . . . . . . . Secondary Targets . | . . . . . . . . . . . . . . . . . . . . . Shots Hit Robots 265 | . . . . 25 67 75 . . 37 43 8 . 7 . . . . . 2 1 Core Hits 148 | . . . . 7 29 35 . . 14 19 8 . 34 . . . . . 1 1 Critical Kills 4 | . . . . 2 . . . . . 1 1 . . . . . . . . . Critical Parts Destroyed 2 | . . . . 2 . . . . . . . . . . . . . . . . Critical Strikes 10 | . . . . 5 . 3 . . . 1 1 . . . . . . . . . Burn 4 | . . . . 1 . 3 . . . . . . . . . . . . . . Destroy 2 | . . . . . . . . . . 1 1 . . . . . . . . . Smash 4 | . . . . 4 . . . . . . . . . . . . . . . . Melee Attacks 209 | . . . . 30 . . . . 39 62 . 1 13 17 2 . 13 7 22 3 Impact 30 | . . . . 30 . . . . . . . . . . . . . . . . Slashing 179 | . . . . . . . . . 39 62 . 1 13 17 2 . 13 7 22 3 Piercing . | . . . . . . . . . . . . . . . . . . . . . Sneak Attacks 7 | . . . . 1 . . . . 1 4 . . . . . . . . . 1 Combat Hostiles 1 | . . . . . . . . . . . . . . . . . . . . 1 Follow-up Attacks . | . . . . . . . . . . . . . . . . . . . . . Damage Inflicted 10191 | . . . . 713 1666 2021 12 . 1188 1911 493 . 2014 . . . . . 88 85 Guns 776 | . . . . 77 . 598 . . 101 . . . . . . . . . . . Cannons 3084 | . . . . 82 1653 997 . . 168 33 151 . . . . . . . . . Explosions 2480 | . . . . . . 421 . . . . 342 . 1717 . . . . . . . Melee 3804 | . . . . 554 . . . . 919 1861 . . 297 . . . . . 88 85 Ramming 47 | . . . . . 13 5 12 . . 17 . . . . . . . . . . Kinetic 1752 | . . . . . 302 997 . . 269 33 151 . . . . . . . . . Thermal 2108 | . . . . 159 1351 598 . . . . . . . . . . . . . . Explosive 763 | . . . . . . 421 . . . . 342 . . . . . . . . . Electromagnetic 1717 | . . . . . . . . . . . . . 1717 . . . . . . . Impact 554 | . . . . 554 . . . . . . . . . . . . . . . . Slashing 3250 | . . . . . . . . . 919 1861 . . 297 . . . . . 88 85 Piercing . | . . . . . . . . . . . . . . . . . . . . . Highest Corruption 8 | . . . . . . . . . . . . . 8 . . . . . 4 . Average Corruption 5 | . . . . . . . . . . . . . 5 . . . . . 3 . Corruption Purged . | . . . . . . . . . . . . . . . . . . . . . Corruption Blocked . | . . . . . . . . . . . . . . . . . . . . . Effects 4 | . . . . . . . . . . . . . 2 . . . . . 2 . Message Errors 3 | . . . . . . . . . . . . . 1 . . . . . 2 . Heat Flow Errors 1 | . . . . . . . . . . . . . 1 . . . . . . . Overload Shots . | . . . . . . . . . . . . . . . . . . . . . Overflow Damage 550 | . . . . 171 43 16 . . 31 242 10 . 37 . . . . . . . Projectiles 59 | . . . . . 43 16 . . . . . . . . . . . . . . Explosions 47 | . . . . . . . . . . . 10 . 37 . . . . . . . Melee 444 | . . . . 171 . . . . 31 242 . . . . . . . . . . Knockbacks 11 | . . . . . 2 5 . . 4 . . . . . . . . . . . Impact . | . . . . . . . . . . . . . . . . . . . . . Kinetic 11 | . . . . . 2 5 . . 4 . . . . . . . . . . . Secondary . | . . . . . . . . . . . . . . . . . . . . . Self-Inflicted Damage 153 | . . . . . . 48 . . . . . . 105 . . . . . . . Shots 3 | . . . . . . 2 . . . . . . 1 . . . . . . . Rammed 6 | . . . . . 2 2 1 . . 1 . . . . . . . . . . Targets Rammed 7 | . . . . . 3 2 1 . . 1 . . . . . . . . . . Kicked . | . . . . . . . . . . . . . . . . . . . . . Crushed 1 | . . . . . 1 . . . . . . . . . . . . . . . Highest Temperature 412 | . . . . 104 381 266 . . 412 40 35 . 246 . . . . . 354 5 Average Temperature 103 | . . . . 46 121 96 . . 195 19 22 . 118 . . . . . 108 5 Received Heat Transfer 2283 | . . . . 84 405 603 . . 438 440 67 72 69 . . . 9 33 63 . Effects 11 | . . . . . 4 4 . . 1 . . . . . . . . . 2 . Shutdowns 2 | . . . . . 1 . . . 1 . . . . . . . . . . . Energy Bleed 2 | . . . . . 2 . . . . . . . . . . . . . . . Interference 4 | . . . . . . 4 . . . . . . . . . . . . . . Matter Decay 1 | . . . . . 1 . . . . . . . . . . . . . . . Short Circuit 1 | . . . . . . . . . . . . . . . . . . . 1 . Damage (minor) 1 | . . . . . . . . . . . . . . . . . . . 1 . Siege Activations . | . . . . . . . . . . . . . . . . . . . . . Robots Corrupted 5 | . . . . 4 . . . . . . . . 1 . . . . . . . Combat Hostiles 4 | . . . . 4 . . . . . . . . . . . . . . . . Parts Fried 10 | . . . . 3 . . . . . . . . 7 . . . . . . . Impact Corruptions 11 | . . . . 11 . . . . . . . . . . . . . . . . Robots Melted . | . . . . . . . . . . . . . . . . . . . . . Combat Hostiles . | . . . . . . . . . . . . . . . . . . . . . Parts Melted 8 | . . . . 1 6 1 . . . . . . . . . . . . . . Heat Transferred 4070 | . . . . 444 2109 1517 . . . . . . . . . . . . . . Parts Sabotaged . | . . . . . . . . . . . . . . . . . . . . . Parts Stolen . | . . . . . . . . . . . . . . . . . . . . . Parts Stripped . | . . . . . . . . . . . . . . . . . . . . . Power Chain Reactions . | . . . . . . . . . . . . . . . . . . . . . Alert | -11 -10 -10 -10 -9 -8 -8 -8 -8 -6 -6 -6 -6 -6 -5 -4 -4 -4 -3 -2 -1 ------- Run | Yrd Mat Min Exi Min Mat Sto Rec Scr Fac Ext Cet Arc Hub Fac Fac Was Fac Res Res Acc Peak Influence 1021 | . 30 80 . 195 407 665 295 . 117 531 294 342 1021 524 195 68 556 594 755 652 Initial 504 | . . 11 . . 11 109 259 . . 1 234 117 119 504 153 68 47 291 328 412 Average 220 | . 12 32 . 88 169 474 208 . 22 154 280 300 482 301 170 68 228 402 501 509 Maximum Alert Level 3 | . . . . . 2 2 1 . . 2 1 1 3 2 . . 2 2 3 2 Low Security (%) 54 | 100 100 100 . 100 59 15 41 . 100 74 . 12 6 . 100 100 53 . . . Level 1 25 | . . . . . 38 8 58 . . 9 100 87 29 87 . . 21 62 32 . Level 2 19 | . . . . . 2 75 . . . 16 . . 61 12 . . 24 37 58 100 Level 3 . | . . . . . . . . . . . . . 1 . . . . . 9 . Level 4 . | . . . . . . . . . . . . . . . . . . . . . Level 5 . | . . . . . . . . . . . . . . . . . . . . . High Security . | . . . . . . . . . . . . . . . . . . . . . Max Security . | . . . . . . . . . . . . . . . . . . . . . Squads Dispatched 30 | . 2 1 . . 2 2 . . 4 3 . . 6 1 2 . 1 1 5 . Investigation 8 | . . 1 . . . . . . . 1 . . . 1 1 . 1 . 3 . Extermination 3 | . . . . . . . . . 2 . . . . . . . . . 1 . Reinforcement 19 | . 2 . . . 2 2 . . 2 2 . . 6 . 1 . . 1 1 . Assault . | . . . . . . . . . . . . . . . . . . . . . Garrison . | . . . . . . . . . . . . . . . . . . . . . Intercept . | . . . . . . . . . . . . . . . . . . . . . Searches Triggered 1 | . . . . . . . . . . . . . . . . . . . 1 . Construction Impeded 4 | . . . . . . 1 . . . 1 . . 1 . . . . . 1 . Haulers Reinforced 2 | . . . . . . . . . 1 . . . 1 . . . . . . . Active Scanning Responses . | . . . . . . . . . . . . . . . . . . . . . Cargo Convoy Interrupts . | . . . . . . . . . . . . . . . . . . . . . Stealth | -11 -10 -10 -10 -9 -8 -8 -8 -8 -6 -6 -6 -6 -6 -5 -4 -4 -4 -3 -2 -1 --------- Run | Yrd Mat Min Exi Min Mat Sto Rec Scr Fac Ext Cet Arc Hub Fac Fac Was Fac Res Res Acc Distress Signals 18 | . . . . . 4 1 . . 1 3 1 . 4 . 1 . 1 . 2 . Communications Jammed . | . . . . . . . . . . . . . . . . . . . . . Distress Signals . | . . . . . . . . . . . . . . . . . . . . . Times Spotted 212 | . 4 2 . 15 30 28 . . 7 31 5 4 30 3 4 . 6 11 28 4 Peak Tracking Total 15 | . 2 2 . 4 7 8 . . 4 5 5 3 15 2 6 . 4 8 11 2 Tactical Retreats 27 | . . 1 . 3 3 3 . . . 4 . . 3 . . . 2 1 7 . Traps | -11 -10 -10 -10 -9 -8 -8 -8 -8 -6 -6 -6 -6 -6 -5 -4 -4 -4 -3 -2 -1 ------- Run | Yrd Mat Min Exi Min Mat Sto Rec Scr Fac Ext Cet Arc Hub Fac Fac Was Fac Res Res Acc Traps Triggered 9 | . . . . . . . . . . 1 . . 6 . 1 . . . 1 . Indirectly 1 | . . . . . . . . . . . . . 1 . . . . . . . Trap Hack Attempts . | . . . . . . . . . . . . . . . . . . . . . Triggered . | . . . . . . . . . . . . . . . . . . . . . Disarmed . | . . . . . . . . . . . . . . . . . . . . . Reprogrammed . | . . . . . . . . . . . . . . . . . . . . . Reused 1 | . . . . . . 1 . . . . . . . . . . . . . . Traps Extracted . | . . . . . . . . . . . . . . . . . . . . . Installed 1 | . . . . . . 1 . . . . . . . . . . . . . . Triggered 3 | . . . . . . 1 . . . 2 . . . . . . . . . . Most Traps Carried 3 | . . 3 3 3 3 3 1 1 1 1 . . . . . . . . . . Machines | -11 -10 -10 -10 -9 -8 -8 -8 -8 -6 -6 -6 -6 -6 -5 -4 -4 -4 -3 -2 -1 ---------- Run | Yrd Mat Min Exi Min Mat Sto Rec Scr Fac Ext Cet Arc Hub Fac Fac Was Fac Res Res Acc Machines Disabled 21 | . . . . . . 5 . . 1 . . 2 12 . . . . . . 1 Max in Single Turn 9 | . . . . . . 1 . . 1 . . . 9 . . . . . . 1 Garrison Access 3 | . . . . . . . . . . . . . . . . . . 1 . 2 Network Hub 2 | . . . . . . . . . . . . . 2 . . . . . . . Energy Cycler 1 | . . . . . . . . . . 1 . . . . . . . . . . Machines Repaired . | . . . . . . . . . . . . . . . . . . . . . Machines Dismantled . | . . . . . . . . . . . . . . . . . . . . . Machines Sabotaged . | . . . . . . . . . . . . . . . . . . . . . Overloaded Fab Kills . | . . . . . . . . . . . . . . . . . . . . . Hacking | -11 -10 -10 -10 -9 -8 -8 -8 -8 -6 -6 -6 -6 -6 -5 -4 -4 -4 -3 -2 -1 --------- Run | Yrd Mat Min Exi Min Mat Sto Rec Scr Fac Ext Cet Arc Hub Fac Fac Was Fac Res Res Acc Machines Accessed 73 | . . 1 . . 6 4 5 7 3 5 3 . 8 7 2 . 2 5 8 7 Terminals 54 | . . . . . 6 4 3 . 3 4 3 . 8 6 1 . 1 4 6 5 Fabricators . | . . . . . . . . . . . . . . . . . . . . . Repair Stations . | . . . . . . . . . . . . . . . . . . . . . Recycling Units 6 | . . . . . . . . . . 1 . . . 1 1 . 1 . 2 . Scanalyzers . | . . . . . . . . . . . . . . . . . . . . . Garrison Access 3 | . . . . . . . . . . . . . . . . . . 1 . 2 Total Hacks 278 | . . 1 . . 16 13 32 31 12 10 10 . 21 40 4 . 11 26 27 24 Successful 143 | . . 1 . . 7 5 29 31 5 7 2 . 9 17 2 . 2 5 11 10 Failed 135 | . . . . . 9 8 3 . 7 3 8 . 12 23 2 . 9 21 16 14 Catastrophic 36 | . . . . . 1 1 2 . 2 . 3 . 2 4 1 . 4 9 3 4 Database Lockouts . | . . . . . . . . . . . . . . . . . . . . . Manual 187 | . . . . . 11 12 7 . 11 6 1 . 19 38 4 . 11 22 26 19 Terminals 204 | . . . . . 16 13 7 . 12 8 10 . 21 38 3 . 9 22 24 21 Fabricators . | . . . . . . . . . . . . . . . . . . . . . Repair Stations . | . . . . . . . . . . . . . . . . . . . . . Recycling Units 10 | . . . . . . . . . . 2 . . . 2 1 . 2 . 3 . Scanalyzers . | . . . . . . . . . . . . . . . . . . . . . Garrison Access 7 | . . . . . . . . . . . . . . . . . . 4 . 3 Terminal Hacks 102 | . . 1 . . 4 3 27 31 4 6 2 . 6 11 . . . . 5 2 Record 51 | . . . . . . . 24 23 . 2 1 . . 1 . . . . . . Robot Analysis 6 | . . . . . . . . 6 . . . . . . . . . . . . Open Door 8 | . . 1 . . . 2 . 1 1 1 1 . . . . . . . . 1 Level Access Points 2 | . . . . . . . . . . . . . . 1 . . . . 1 . Branch Access Points 3 | . . . . . 1 1 . . . . . . . 1 . . . . . . Terminal Index 6 | . . . . . . . 1 . 1 1 . . 1 1 . . . . 1 . Recycling Unit Index 4 | . . . . . . . . . 1 . . . 1 1 . . . . 1 . Alert Level 2 | . . . . . 1 . . . . . . . . 1 . . . . . . Unreport Threat 2 | . . . . . . . . . . . . . . 2 . . . . . . Recall Investigation 1 | . . . . . . . . . . . . . . 1 . . . . . . Zone Layout 15 | . . . . . 2 . 1 . 1 2 . . 4 2 . . . . 2 1 Derelict Proto ID Bank 1 | . . . . . . . . 1 . . . . . . . . . . . . Release Object 1 | . . . . . . . 1 . . . . . . . . . . . . . Fabricator Hacks . | . . . . . . . . . . . . . . . . . . . . . Repair Station Hacks . | . . . . . . . . . . . . . . . . . . . . . Recycling Unit Hacks . | . . . . . . . . . . . . . . . . . . . . . Scanalyzer . | . . . . . . . . . . . . . . . . . . . . . Garrison Access Hacks 3 | . . . . . . . . . . . . . . . . . . 1 . 2 Seal Access 3 | . . . . . . . . . . . . . . . . . . 1 . 2 Unauthorized Hacks 38 | . . . . . 3 2 2 . 1 1 . . 3 6 2 . 2 4 6 6 Terminals 32 | . . . . . 3 2 2 . 1 . . . 3 5 1 . 1 4 4 6 Assimilate 6 | . . . . . . . . . . . . . . 2 . . . 1 1 2 Botnet 26 | . . . . . 3 2 2 . 1 . . . 3 3 1 . 1 3 3 4 Fabricators . | . . . . . . . . . . . . . . . . . . . . . Repair Stations 6 | . . . . . . . . . . 1 . . . 1 1 . 1 . 2 . Recycling Units . | . . . . . . . . . . . . . . . . . . . . . Fedlink 4 | . . . . . . . . . . 1 . . . 1 1 . . . 1 . Scrapoids 2 | . . . . . . . . . . . . . . . . . 1 . 1 . Scanalyzers . | . . . . . . . . . . . . . . . . . . . . . Garrison Access . | . . . . . . . . . . . . . . . . . . . . . Data Cores Recovered . | . . . . . . . . . . . . . . . . . . . . . Used . | . . . . . . . . . . . . . . . . . . . . . Hacking Detections 36 | . . . . . 6 3 2 . 2 1 2 . 5 3 . . 1 4 3 4 Full Trace Events . | . . . . . . . . . . . . . . . . . . . . . Feedback Events . | . . . . . . . . . . . . . . . . . . . . . Feedback Blocked . | . . . . . . . . . . . . . . . . . . . . . Robot Schematics Acquired . | . . . . . . . . . . . . . . . . . . . . . Robots Built . | . . . . . . . . . . . . . . . . . . . . . Authchips . | . . . . . . . . . . . . . . . . . . . . . Time . | . . . . . . . . . . . . . . . . . . . . . Total Robot Build Rating . | . . . . . . . . . . . . . . . . . . . . . Part Schematics Acquired . | . . . . . . . . . . . . . . . . . . . . . Parts Built . | . . . . . . . . . . . . . . . . . . . . . Authchips . | . . . . . . . . . . . . . . . . . . . . . Time . | . . . . . . . . . . . . . . . . . . . . . Total Part Build Rating . | . . . . . . . . . . . . . . . . . . . . . Parts Repaired . | . . . . . . . . . . . . . . . . . . . . . Time . | . . . . . . . . . . . . . . . . . . . . . Parts Recycled . | . . . . . . . . . . . . . . . . . . . . . Recycled Matter . | . . . . . . . . . . . . . . . . . . . . . Retrieved Matter . | . . . . . . . . . . . . . . . . . . . . . Retrieved Components . | . . . . . . . . . . . . . . . . . . . . . Parts Scanalyzed . | . . . . . . . . . . . . . . . . . . . . . Part Schematics Acquired . | . . . . . . . . . . . . . . . . . . . . . Parts Damaged . | . . . . . . . . . . . . . . . . . . . . . Bothacking | -11 -10 -10 -10 -9 -8 -8 -8 -8 -6 -6 -6 -6 -6 -5 -4 -4 -4 -3 -2 -1 ------------ Run | Yrd Mat Min Exi Min Mat Sto Rec Scr Fac Ext Cet Arc Hub Fac Fac Was Fac Res Res Acc Used RIF Installer . | . . . . . . . . . . . . . . . . . . . . . Robots Hacked . | . . . . . . . . . . . . . . . . . . . . . Non-combat . | . . . . . . . . . . . . . . . . . . . . . Combat . | . . . . . . . . . . . . . . . . . . . . . Robot Hacks Applied . | . . . . . . . . . . . . . . . . . . . . . Relay Couplers Released . | . . . . . . . . . . . . . . . . . . . . . Fabnet Peak Effective % . | . . . . . . . . . . . . . . . . . . . . . Robots Rewired 11 | . . . . . . . . . . 10 . . 1 . . . . . . . Allies Hacked . | . . . . . . . . . . . . . . . . . . . . . Hacks Repelled . | . . . . . . . . . . . . . . . . . . . . . Allies | -11 -10 -10 -10 -9 -8 -8 -8 -8 -6 -6 -6 -6 -6 -5 -4 -4 -4 -3 -2 -1 -------- Run | Yrd Mat Min Exi Min Mat Sto Rec Scr Fac Ext Cet Arc Hub Fac Fac Was Fac Res Res Acc Total Allies 31 | . . 2 . . . . . . . 11 4 . 1 1 . . 5 1 6 . Largest Group 6 | . . 2 1 . . . . . . 4 6 5 4 1 . . 5 5 5 . Highest-Rated Group 574 | . . 44 31 . . . . . . 268 574 478 319 10 . . 235 235 323 . Highest-Rated Ally 159 | . . 31 31 . . . . . . 159 159 159 96 10 . . 47 47 67 . Total Orders . | . . . . . . . . . . . . . . . . . . . . . Ally Attacks 300 | . . 14 . . . . . . . 55 25 29 54 . . . 29 54 40 . Total Damage 8098 | . . 188 . . . . . . . 1774 551 1004 1992 . . . 573 1010 1006 . Kills 59 | . . 2 . . . . . . . 15 3 4 12 . . . 11 7 5 . Allies Corrupted . | . . . . . . . . . . . . . . . . . . . . . Allies Melted . | . . . . . . . . . . . . . . . . . . . . . Intel | -11 -10 -10 -10 -9 -8 -8 -8 -8 -6 -6 -6 -6 -6 -5 -4 -4 -4 -3 -2 -1 ------- Run | Yrd Mat Min Exi Min Mat Sto Rec Scr Fac Ext Cet Arc Hub Fac Fac Was Fac Res Res Acc Robot Analysis Total 6 | . . . . . . . . 6 . . . . . . . . . . . . Derelict Logs Recovered 3 | . . 2 . 1 . . . . . . . . . . . . . . . . Drone Launches . | . . . . . . . . . . . . . . . . . . . . . Drone Recoveries . | . . . . . . . . . . . . . . . . . . . . . Exploration | -11 -10 -10 -10 -9 -8 -8 -8 -8 -6 -6 -6 -6 -6 -5 -4 -4 -4 -3 -2 -1 ------------- Run | Yrd Mat Min Exi Min Mat Sto Rec Scr Fac Ext Cet Arc Hub Fac Fac Was Fac Res Res Acc Turns Passed 12060 | 60 99 252 234 843 874 686 688 3778 1038 1319 244 140 468 334 48 25 173 245 343 169 Spaces Moved 10268 | 55 109 265 259 785 478 288 437 2203 565 743 180 107 483 717 139 79 396 595 876 509 Core 5 | 3 . . . . 2 . . . . . . . . . . . . . . . Treads 4221 | . . . . . 226 288 437 2203 546 521 . . . . . . . . . . Legs 691 | . . . . . . . . . . 114 180 107 290 . . . . . . . Wheels 1739 | 52 109 265 259 785 250 . . . 19 . . . . . . . . . . . Hover 108 | . . . . . . . . . . 108 . . . . . . . . . . Flight 3504 | . . . . . . . . . . . . . 193 717 139 79 396 595 876 509 Fastest Speed 19 | 50 90 90 90 90 105 145 145 170 120 60 120 120 34 31 31 31 31 31 19 21 Average Speed 102 | 87 90 90 90 90 141 152 151 170 154 137 120 120 85 31 31 31 31 31 27 30 Slowest Speed 700 | 90 90 90 90 115 700 240 170 250 225 190 190 120 190 31 31 31 31 34 31 31 Overloaded Moves 94 | . . . . . . . . . . . . . . . . . . . 86 8 Propulsion Burnouts . | . . . . . . . . . . . . . . . . . . . . . Robots Hopped 12 | . . . . . . . . . . . . . 5 . . . . 1 4 2 Cave-ins Triggered . | . . . . . . . . . . . . . . . . . . . . . Exploration Rate (%) 47 | 3 32 47 58 93 37 55 95 96 13 67 78 80 56 22 5 73 15 18 27 20 Regions Visited 20 Branch Regions 10 Pre-discovered Areas . | . . . . . . . . . . . . . . . . . . . . . Known Exits Taken 11 | . . . . . 1 1 . . 1 1 1 1 1 1 . . 1 1 1 . Unknown Exits Taken 7 | 1 1 1 1 1 . . 1 1 . . . . . . . . . . . . Scrap Searched 5 | . . . . 1 . . . 4 . . . . . . . . . . . . Spaces Dug 98 | . . . . . 5 . . . 11 22 . . 6 16 . . 13 7 17 1 Terrain Destroyed 472 | . . . . . 20 31 . . 13 23 32 . 299 16 . . 13 7 17 1 Melee 79 | . . . . . . . . . 11 8 . . 6 16 . . 13 7 17 1 Projectile 46 | . . . . . 20 6 . . 2 15 3 . . . . . . . . . AOE 347 | . . . . . . 25 . . . . 29 . 293 . . . . . . . Terrain Rammed . | . . . . . . . . . . . . . . . . . . . . . Walls Destroyed . | . . . . . . . . . . . . . . . . . . . . . Machines Disabled . | . . . . . . . . . . . . . . . . . . . . . Actions | -11 -10 -10 -10 -9 -8 -8 -8 -8 -6 -6 -6 -6 -6 -5 -4 -4 -4 -3 -2 -1 --------- Run | Yrd Mat Min Exi Min Mat Sto Rec Scr Fac Ext Cet Arc Hub Fac Fac Was Fac Res Res Acc Total 11243 | 63 109 278 260 850 590 432 464 2237 651 938 195 117 513 802 141 78 426 639 945 515 Wait 323 | 1 . 6 . 12 34 49 20 2 20 19 3 7 3 62 . . 14 25 42 4 Move 10227 | 54 108 264 258 784 477 287 436 2202 564 742 179 106 475 716 139 78 395 592 867 504 Hop 9 | . . . . . . . . . . . . . 2 . . . . 1 4 2 Pick Up 52 | 2 1 6 . 3 4 7 1 6 6 5 . 1 3 3 . . 1 1 2 . Fast Attach 62 | 6 . 1 . 2 12 7 . 5 4 7 2 1 3 . . . 1 5 4 2 Attach 41 | . . . . 2 4 3 . 3 8 6 3 . 3 3 . . . 4 2 . Detach 23 | . . . . 1 4 1 . 4 1 4 . 1 4 . . . . 2 1 . Swap 15 | . . . 1 1 1 4 3 3 . 1 . . . 1 . . . . . . Drop 58 | . . 1 1 2 8 11 3 11 . 11 . . 5 . . . 2 2 1 . Fire 148 | . . . . 13 43 60 . . 9 14 8 . 1 . . . . . . . Melee 209 | . . . . 30 . . . . 39 62 . 1 13 17 2 . 13 7 22 3 Ram . | . . . . . . . . . . . . . . . . . . . . . Kick . | . . . . . . . . . . . . . . . . . . . . . Crush 7 | . . . . . 3 2 1 . . 1 . . . . . . . . . . Escape Stasis 13 | . . . . . . . . . . 13 . . . . . . . . . . Rewire 55 | . . . . . . . . 1 . 53 . . 1 . . . . . . . Trap 1 | . . . . . . 1 . . . . . . . . . . . . . . Miscellaneous . | . . . . . . . . . . . . . . . . . . . . . Route ------- -11/Scrapyard -10/Materials -10/Mines (discovered 2 exits: [*Mat] / [*Exi]) -10/Exiles -9/Mines -8/Materials (discovered 2 exits: *Sto x2) -8/Storage -8/Recycling (discovered 2 exits: *Fac / *Scr) -8/Scraptown (discovered 2 exits: *Fac x2) -6/Factory -6/Extension (discovered 2 exits: *Fac / *Cet) -6/Cetus -6/Archives (discovered 3 exits: *Fac / *Hub x2) -6/Hub_04(d) (discovered 2 exits: *Fac x2) -5/Factory (discovered 6 exits: *Fac x4 / *Upp x2) -4/Factory -4/Waste -4/Factory -3/Research -2/Research (discovered 3 exits: *Acc x3) -1/Access To Epsilon Eridani History --------- Turn | Location | Event 19 | -11/Scrapyard | Discovered new exit (range 15) 61 | -11/Scrapyard | Entered Materials 143 | -10/Materials | Discovered new exit (range 9) 160 | -10/Materials | Entered Mines 180 | -10/Mines | Met a Derelict shopkeep closing up shop 180 | -10/Mines | Met a Derelict bent on vengeance 249 | -10/Mines | Learned 2 Materials zone layouts 300 | -10/Mines | Build established: Mutant 339 | -10/Mines | Learned Materials terminal intel 346 | -10/Mines | Found a hidden stash of uninstalled traps 364 | -10/Mines | Discovered new exit (range 9) 393 | -10/Mines | Deemed a non-threat by the Exiles lab entrance 394 | -10/Mines | Discovered new exit (range 5) 412 | -10/Mines | Entered Exiles 412 | -10/Exiles | Accompanied by 1 ally 435 | -10/Exiles | Met 8R-AWN 442 | -10/Exiles | Led the pair of lost Derelicts to a safe place 451 | -10/Exiles | Met EX-HEX 499 | -10/Exiles | Met EX-DEC 584 | -10/Exiles | Met EX-BIN 635 | -10/Exiles | Discovered new exit (range 14) 646 | -10/Exiles | Entered Mines 782 | -9/Mines | Learned Materials security intel 1173 | -9/Mines | Discovered new exit (range 11) 1486 | -9/Mines | Lost 4 parts (1p1n2w) 1489 | -9/Mines | Entered Materials 1489 | -8/Materials | Evolved 4 slots: Power x1, Utility x2, Weapon x1 1490 | -8/Materials | Identified exit to Storage 1492 | -8/Materials | Loaded intel: 11 terminal locations 2363 | -8/Materials | Entered Storage 2714 | -8/Storage | Identified exit to Recycling 2977 | -8/Storage | Build established: Gunner 3045 | -8/Storage | Used back door to open Recycling access 3049 | -8/Storage | Entered Recycling 3050 | -8/Recycling | Met a Zionite searching for Scraptown 3436 | -8/Recycling | Discovered new exit (range 16) 3673 | -8/Recycling | Scanned before Scraplab entrance 3705 | -8/Recycling | Entered Scraplab 3734 | -8/Recycling | Discovered new exit (range 3) 3737 | -8/Recycling | Entered Scraptown 3794 | -8/Scraptown | Heard Great Nut preacher, LISTEN AND RECITE! 4160 | -8/Scraptown | Visited SPCMW 4208 | -8/Scraptown | Visited The Evicted 4615 | -8/Scraptown | Build established: Hacker-Gunner 4729 | -8/Scraptown | Visited CPS Storage 4775 | -8/Scraptown | Visited UFD Registry 4787 | -8/Scraptown | Visited Comm Corps 4886 | -8/Scraptown | Visited Shadow of the Wyrm 4928 | -8/Scraptown | Visited Red Mages 5406 | -8/Scraptown | Discovered new exit (range 5) 5748 | -8/Scraptown | Registered with UFD as "Softrigger" 5803 | -8/Scraptown | Visited Scrapoid Research Area 5843 | -8/Scraptown | Visited Junk Repository 5995 | -8/Scraptown | Visited Research Penetration Think Tank 6282 | -8/Scraptown | Visited Infowarlord's Domain 6295 | -8/Scraptown | Found Exp. Sensor Array 6354 | -8/Scraptown | Visited Scrap Suit Storage 6446 | -8/Scraptown | Visited DA-N13 Charitable Foundation 6469 | -8/Scraptown | Found DCF Scrap (27 items) 6590 | -8/Scraptown | Discovered new exit (range 3) 6595 | -8/Scraptown | Build established: Hacker-Skirmisher 6826 | -8/Scraptown | Visited Analyses Database 6879 | -8/Scraptown | Visited Science Guys 6991 | -8/Scraptown | Visited Sword Containment 7515 | -8/Scraptown | Entered Factory 7515 | -6/Factory | Evolved 4 slots: Propulsion x1, Utility x2, Weapon x1 7804 | -6/Factory | Build established: Hacker-Tank 7918 | -6/Factory | Lost 7 parts (2p1n1u3w) 8151 | -6/Factory | Build established: Hacker-Mutant 8525 | -6/Factory | Discovered new exit (range 6) 8530 | -6/Factory | Identified exit to Extension 8553 | -6/Factory | Entered Extension 8659 | -6/Extension | Lost 3 allies 8930 | -6/Extension | Rescued A7 8986 | -6/Extension | Energy Cycler disabled 9266 | -6/Extension | Lost 3 parts (1p1u1w) 9673 | -6/Extension | Lost 3 parts (1p2n) 9840 | -6/Extension | Discovered new exit (range 10) 9841 | -6/Extension | Discovered new exit (range 6) 9848 | -6/Extension | Identified exit to Cetus 9867 | -6/Extension | Identified exit to Factory 9872 | -6/Extension | Entered Cetus 9872 | -6/Cetus | Accompanied by 3 allies (A7) 9877 | -6/Cetus | Acquired a Cetus Manufacturing Module code from A7 9889 | -6/Cetus | Spotted Cetus Guard 9889 | -6/Cetus | Spotted Cetus Guard 9891 | -6/Cetus | Spotted Cetus Guard 9891 | -6/Cetus | Spotted Cetus Guard 9897 | -6/Cetus | Allies destroyed Cetus Guard 9907 | -6/Cetus | Destroyed Cetus Guard 9910 | -6/Cetus | Core integrity fell below 50% 9910 | -6/Cetus | Destroyed Cetus Guard 9916 | -6/Cetus | Allies destroyed Cetus Guard 9940 | -6/Cetus | Lost 5 parts (1p2n1u1w) 10003 | -6/Cetus | Started Cetus Manufacturing Module 10012 | -6/Cetus | Escorted A7 to Cetus Mainframe 10028 | -6/Cetus | Manufactured an Enhanced Grunt 10053 | -6/Cetus | Manufactured an Enhanced Grunt 10078 | -6/Cetus | Manufactured an Enhanced Grunt 10093 | -6/Cetus | Discovered new exit (range 15) 10103 | -6/Cetus | Manufactured an Enhanced Grunt 10109 | -6/Cetus | Identified exit to Archives 10116 | -6/Cetus | Entered Archives 10116 | -6/Archives | Accompanied by 5 allies (A7) 10122 | -6/Archives | Received a hacking code to weaken MAIN.C 10139 | -6/Archives | Unable to access archive contents 10144 | -6/Archives | Discovered exit to Factory (range 13) 10159 | -6/Archives | Discovered new exit (range 15) 10169 | -6/Archives | Discovered new exit (range 16) 10220 | -6/Archives | Identified exit to Hub_04(d) 10256 | -6/Archives | Entered Hub_04(d) 10256 | -6/Hub_04(d) | Accompanied by 4 allies 10420 | -6/Hub_04(d) | Discovered exit to Factory (range 6) 10690 | -6/Hub_04(d) | Discovered exit to Factory (range 9) 10716 | -6/Hub_04(d) | Network Hub disabled 10716 | -6/Hub_04(d) | Network Hub disabled 10724 | -6/Hub_04(d) | Entered Factory 10724 | -5/Factory | Evolved 2 slots: Propulsion x1, Utility x1 10759 | -5/Factory | Identified exit to Factory 10765 | -5/Factory | Identified exit to Upper Caves 11022 | -5/Factory | Build established: Hacker-Sprinter 11058 | -5/Factory | Entered another Factory area 11058 | -4/Factory | Evolved 2 slots: Propulsion x1, Utility x1 11106 | -4/Factory | Sucked down chute 11106 | -4/Factory | Entered Waste 11106 | -4/Waste | The area was eerily silent 11128 | -4/Waste | Discovered new exit (range 11) 11130 | -4/Waste | Identified exit to Factory 11131 | -4/Waste | Entered Factory 11192 | -4/Factory | Scrapoids reinforcements arrived? 11277 | -4/Factory | Discovered new exit (range 4) 11278 | -4/Factory | Identified exit to Research 11304 | -4/Factory | Entered Research 11304 | -3/Research | Accompanied by 5 allies 11304 | -3/Research | Evolved 2 slots: Propulsion x1, Utility x1 11502 | -3/Research | Lost 3 parts (2n1u) 11529 | -3/Research | Discovered new exit (range 7) 11543 | -3/Research | Identified exit to Research 11549 | -3/Research | Spotted B-86 Titan 11549 | -3/Research | Entered another Research area 11549 | -2/Research | Evolved 2 slots: Utility x2 11681 | -2/Research | Identified exit to Access 11834 | -2/Research | Search patrols dispatched 11841 | -2/Research | Scrapoids reinforcements arrived? 11892 | -2/Research | Lost 5 parts (1p1n3u) 11892 | -2/Research | Entered Access 11892 | -1/Access | Evolved 2 slots: Utility x2 12059 | -1/Access | Discovered new exit (range 5) 12060 | -1/Access | Identified exit to Surface 12061 | *** | Escaped! Last Messages --------------- 12026_ Connecting with Terminal... >>Trojan(Botnet) Trojan loaded successfully. Testing... Terminal linked with 3 systems. Awaiting botnet instructions. >>Layout(Zone) Retrieving Zone 4F layout... Downloaded map data. 12046_ Acquired Quantum Reactor. 12050_ U-05 Engineer builds a Wall. 12053_ Sneak attack on P-80 Master. 12053_ P-80 Master destroyed. 12054_ Acquired 22 matter. 12059_ Connecting with Terminal... >>Open(Door) Sealed Barrier opened. 12059_ The Access Shell folds into the floor. 12059_ EXIT=FOUND 12060_ EXIT=IDENTIFIED: SURFACE Map ----- +----------------------------------------------------+ | ?????????????????????????????????????????????????? | | ?????????????????????????????????????????????????? | | ?????????????????????????????????????######?#????? | | ??????????????????????????????????????""" #????? | | ??????????????????????????????????????"R"" #????? | | ??????????????????????????????????????" "" ?????? | | ?????????????????????????????????????? ?????? | | ?????????????????????????????????????? ??????? | | ?????????????????????????????????????? ???????? | | ?????????????????????????????????????? ???????? | | ?????????????????????????????????????? ????????? | | ?????????????????????????????????????##/#????????? | | ????????????????????????############?# ########## | | ????????????????????????# # # [ | | ????????????????????????# # # | | ????????????????????????# ! +| + | | ????????????????????????# #% # | | ????????????????????????# * #= # | | ????????????????????????############?# ########## | | ?????????????????????????????###?????# #????????? | | ????????????????????########## ####### #????????? | | ????????????????????" #????????? | | ????????????????????" #????????? | | ????????????????????" #????????? | | ????????????????????" #????????? | | ????????????????????" "@ #????????? | | ????????????????????" "" #????????? | | ????????????????????" #????????? | | ????????????????????" #????????? | | ????????????????????" """ """ #????????? | | ????????????????????" """T""" #????????? | | ????????????????????########## ####### #????????? | | ?????????????????????????????###?????? #????????? | | ?????????????????????????????????????? #?????#### | | ?????????????????????????????????????? #????? | | ?????????????????????????????????????? #????? | | ?????????????????????????????????????? +????? | | ?????????????????????????????????????? #????? | | ?????????????????????????????????????? #?????""" | | ?????????????????????????????????????? +?????""" | | ??????????????????????????????????????##??????""" | | ??????????????????????????????????????????????""" | | ??????????????????????????????????????????????""" | | ??????????????????????????????????????????????""" | | ?????????????????????????????????????????????? | | ?????????????????????????????????????????????? | | ??????????????????????????????????????????????#### | | ?????????????????????????????????????????????? | | ?????????????????????????????????????????????????? | | ?????????????????????????????????????????????????? | +----------------------------------------------------+ Best States ------------- Heat Dissipation 67 Energy Generation 34 Energy Capacity 450 Matter Stores 300 Matter Capacity 300 Sight Range 20 Robot Scan Range 20 Terrain Scan Density 10 Cloak Strength 3 Additional Mass Support 9 Armor Coverage 525 Evasion (%) 64 Targeting Accuracy 8 Recoil Reduction 3 Offensive Hacking 10 Defensive Hacking 32 Item Schematics ----------------- None Robot Schematics ------------------ None Fabricated ------------ Nothing Alien Tech Used ----------------- None Achievements -------------- Novice Programmer Party Time Prolific Hacker \\IAMDERELICT Challenges ------------ None Game ------ Seed CarbidePitchforkClaw Manual? 0 Play Time 03:31:14 Cumulative 44.4 hours Start 2024.10.06 @ 01:02:27 End 2024.10.30 @ 01:14:24 Sessions 3 Manual Loads 0 Difficulty Rogue Special Mode None Game No. 27 Rogue 23 Adventurer 4 Explorer 0 Win Type 0 Total 3 Types 3/0/0/0/0/0/0/0/0 Lore% 32 Gallery% 36 Achievement% 39 Wizard Run 0 Options --------- Layout 1 ASCII 0 Keyboard 1 Movement Numpad Keybinds 0 Fullscreen 1 Font 32/SmallcapsGlow Map View 50x35 Zoom Use 0% Tactical HUD 1 Map Filters NONE Filters NONE Steam 1 RUN: 98772526-5b25-4c53-ba5a-1f35d95b5712